Cogmind - Beta 14 @@@ ROGUE MODE // 2024.09.23 @ 17:45:30 Player: polar Result: Destroyed by 8R-AWN with 8R-AWN's Boregun Performance ------------- Evolutions (0) 0 Regions Visited (3) 600 Robots Destroyed (19) 95 Value Destroyed (357) 357 Prototype IDs (27) 540 Alien Tech Used (0) 0 Bonus (-317) -317 TOTAL SCORE: 1275 Bonus ------- Follower Combat Kills 57 Aligned with FarCom 300 Friendly Fire -674 Cogmind --------- Core Integrity 0/250 Matter 60/300 Energy 250/250 System Corruption 0% Temperature Warm (144) Movement Rolling (115) Ox1 Location -10/Exiles Parts ------- > --- POWER (1) -------- Ion Engine > --- PROPULSION (2) --- Compact Wheel > --- UTILITY (2) ------ Large Storage Unit > --- WEAPON (2) ------- Beam Cannon > --- INVENTORY (15) --- Light Ion Engine Improved Heat Sink Lightpack 2.0 Experimental Sensor Array Reactive Plating Improved Trap Extractor (0/6) AWS/Gauss Peak State ------------ > --- POWER ------------ Ion Engine > --- PROPULSION ------- Light Treads Light Treads > --- UTILITY ---------- Large Storage Unit Reflective Plating > --- WEAPON ----------- AWS/Gauss > --- INVENTORY -------- Light Ion Engine Wheel Compact Wheel Compact Wheel Improved Heat Sink Lightpack 2.0 Experimental Sensor Array Reactive Plating Improved Trap Extractor Medium Laser Beam Cannon [Rating: 28] Favorites ----------- Power Ion Engine Engine Ion Engine Propulsion Wheel Treads Light Treads Wheel Wheel Utility Large Storage Unit Device Experimental Sensor Array Storage Large Storage Unit Hackware EX Chip 1 Protection Reflective Plating Weapon Beam Cannon Energy Gun Medium Laser Energy Cannon Beam Cannon Ballistic Gun Light Assault Rifle Launcher Grenade Launcher Special Weapon Mining Laser Build | -11 -10 -10 -10 ------- Run | Yrd Mat Min Exi Slots Evolved . | . . . . Power . | . . . . Propulsion . | . . . . Utility . | . . . . Weapon . | . . . . Parts Attached 39 | 7 9 5 18 Power 1 | 1 . . . Engine 1 | 1 . . . Core . | . . . . Reactor . | . . . . Propulsion 11 | 2 4 1 4 Treads 4 | . 2 . 2 Leg . | . . . . Wheel 7 | 2 2 1 2 Hover . | . . . . Flight . | . . . . Utility 11 | 2 3 1 5 Device 3 | 1 1 1 . Storage 2 | 1 1 . . Processor . | . . . . Hackware 2 | . . . 2 Protection 4 | . 1 . 3 Artifact . | . . . . Weapon 16 | 2 2 3 9 Energy Gun 2 | 1 . . 1 Energy Cannon 6 | . 2 . 4 Ballistic Gun 3 | 1 . . 2 Ballistic Cannon . | . . . . Launcher 4 | . . 2 2 Special Weapon 1 | . . 1 . Impact Weapon . | . . . . Slashing Weapon . | . . . . Piercing Weapon . | . . . . Special Melee Weapon . | . . . . Unidentified Prototypes 1 | . . 1 . Parts Lost 7 | . . . 7 Power . | . . . . Propulsion 3 | . . . 3 Utility 1 | . . . 1 Weapon 3 | . . . 3 Highest Loss Streak 7 | . . . 7 To Critical Strikes 3 | . . . 3 Average Slot Usage (%) 98 | . 100 99 97 Engine 14 | . 14 14 14 Treads 9 | . 2 . 20 Wheel 18 | . 25 27 7 Device 9 | . 13 14 3 Storage 14 | . 14 14 14 Protection 4 | . 1 . 10 Energy Gun 4 | . 14 . . Energy Cannon 12 | . 11 14 12 Ballistic Gun 1 | . 2 . 1 Launcher 7 | . . 10 11 Peak Build Rating 28 | 7 10 17 28 Average Rating 13 | 5 8 16 15 On Entrance 8 | . 7 10 17 Naked Turns . | . . . . Heaviest Build 39 | 14 33 32 39 Greatest Support 40 | 26 40 20 40 Greatest Overweight (x) 1 | . 1 1 1 Average Overweight (x) . | . . 1 . Largest Inventory Capacity 15 | 8 15 15 15 Average Capacity 14 | 7 14 15 15 Most Carried 15 | 7 15 15 15 Average Carried 13 | 3 13 14 13 Final Capacity 15 | 8 15 15 15 Final Carried 15 | 7 15 15 10 Class Distribution -------------------- 100% | Mutant Dominant Class ---------------- Mutant | -10/Materials Mutant | -10/Mines Mutant | -10/Exiles Resources | -11 -10 -10 -10 ----------- Run | Yrd Mat Min Exi Matter Collected 452 | 277 90 85 . Remotely . | . . . . Salvage Created 597 | 111 382 71 33 Parts 34 | 6 14 7 7 Haulers Intercepted 2 | . 2 . . Recyclers Shooed 2 | 1 1 . . Parts Field Recycled . | . . . . Retrieved Matter . | . . . . Parts Self-Destructed . | . . . . Prevented . | . . . . Kills | -11 -10 -10 -10 ------- Run | Yrd Mat Min Exi Combat Hostiles Destroyed 20 | . 8 5 7 Guns 4 | . 4 . . Cannons 8 | . 4 1 3 AOE 8 | . . 4 4 Classes Destroyed 7 | 2 4 . 1 Tunneler 1 | 1 . . . Hauler 2 | . 2 . . Recycler 1 | 1 . . . Watcher 1 | . 1 . . Swarmer 6 | . 3 3 . Grunt 7 | . 5 2 . Assembled 7 | . . . 7 Best Kill Streak 6 | 2 4 3 6 Combat Bots Only 6 | . 4 3 6 Max Kills in Single Turn 3 | 1 1 3 2 Gunslinging . | . . . . Exploded 3 | . . 3 2 Melee . | . . . . Uniques/NPCs Destroyed 1 | . . . 1 EX-BIN (-10/Exiles) Combat | -11 -10 -10 -10 -------- Run | Yrd Mat Min Exi Hostile Shots Fired 102 | . 37 5 60 Missed 21 | . 10 1 10 Damage Taken 1261 | . 312 86 863 Core 250 | . 55 17 178 Absorbed by Shields . | . . . . Ignored by Resistances 44 | . . . 44 Core Remaining (%) 100 | 100 . . . Volleys Fired 81 | 7 35 23 16 Largest 2 | 2 2 2 2 Hottest 120 | 70 110 100 120 Shots Fired 134 | 14 70 26 24 Gun 53 | 14 35 . 4 Cannon 52 | . 35 4 13 Launcher 13 | . . 6 7 Special 16 | . . 16 . Kinetic 7 | 7 . . . Thermal 114 | 7 70 20 17 Explosive 13 | . . 6 7 Electromagnetic . | . . . . Robot Hit Streak 13 | 2 13 2 3 Robot Miss Streak 3 | 1 2 3 2 Penetration Max . | . . . . Secondary Targets . | . . . . Shots Hit Robots 72 | 7 51 4 10 Core Hits 42 | 4 17 6 15 Critical Kills . | . . . . Critical Parts Destroyed . | . . . . Critical Strikes 4 | . 4 . . Burn 4 | . 4 . . Melee Attacks . | . . . . Impact . | . . . . Slashing . | . . . . Piercing . | . . . . Sneak Attacks . | . . . . Combat Hostiles . | . . . . Follow-up Attacks . | . . . . Damage Inflicted 1622 | 68 774 237 543 Guns 464 | 68 394 . 2 Cannons 506 | . 380 19 107 Explosions 652 | . . 218 434 Melee . | . . . . Ramming . | . . . . Kinetic 42 | 42 . . . Thermal 928 | 26 774 19 109 Explosive 652 | . . 218 434 Electromagnetic . | . . . . Impact . | . . . . Slashing . | . . . . Piercing . | . . . . Highest Corruption . | . . . . Average Corruption . | . . . . Corruption Purged . | . . . . Corruption Blocked . | . . . . Overload Shots . | . . . . Overflow Damage 64 | . 10 8 46 Projectiles 18 | . 10 . 8 Explosions 46 | . . 8 38 Melee . | . . . . Knockbacks . | . . . . Impact . | . . . . Kinetic . | . . . . Secondary . | . . . . Self-Inflicted Damage 59 | . . 37 22 Shots 2 | . . 1 1 Rammed . | . . . . Targets Rammed . | . . . . Kicked . | . . . . Crushed . | . . . . Highest Temperature 314 | 90 312 80 314 Average Temperature 83 | 38 104 34 113 Received Heat Transfer 227 | . 141 6 80 Effects 2 | . 2 . . Energy Bleed 2 | . 2 . . Siege Activations . | . . . . Robots Corrupted . | . . . . Combat Hostiles . | . . . . Parts Fried . | . . . . Impact Corruptions . | . . . . Robots Melted . | . . . . Combat Hostiles . | . . . . Parts Melted 6 | . 6 . . Heat Transferred 2543 | 74 2183 37 249 Parts Sabotaged . | . . . . Parts Stolen . | . . . . Parts Stripped . | . . . . Power Chain Reactions . | . . . . Alert | -11 -10 -10 -10 ------- Run | Yrd Mat Min Exi Peak Influence 228 | 10 228 206 . Initial 88 | . 6 88 . Average 91 | 3 57 138 . Maximum Alert Level 1 | . 1 1 . Low Security (%) 79 | 100 95 60 . Level 1 20 | . 4 39 . Level 2 . | . . . . Level 3 . | . . . . Level 4 . | . . . . Level 5 . | . . . . High Security . | . . . . Max Security . | . . . . Squads Dispatched 1 | . 1 . . Investigation 1 | . 1 . . Extermination . | . . . . Reinforcement . | . . . . Assault . | . . . . Garrison . | . . . . Intercept . | . . . . Searches Triggered . | . . . . Construction Impeded . | . . . . Haulers Reinforced . | . . . . Active Scanning Responses . | . . . . Cargo Convoy Interrupts . | . . . . Stealth | -11 -10 -10 -10 --------- Run | Yrd Mat Min Exi Distress Signals . | . . . . Communications Jammed . | . . . . Distress Signals . | . . . . Times Spotted 27 | . 15 4 8 Peak Tracking Total 9 | . 6 3 9 Tactical Retreats . | . . . . Traps | -11 -10 -10 -10 ------- Run | Yrd Mat Min Exi Traps Triggered 1 | . 1 . . Indirectly . | . . . . Trap Hack Attempts . | . . . . Triggered . | . . . . Disarmed . | . . . . Reprogrammed . | . . . . Reused . | . . . . Traps Extracted . | . . . . Installed . | . . . . Triggered . | . . . . Machines | -11 -10 -10 -10 ---------- Run | Yrd Mat Min Exi Machines Disabled 3 | . . . 3 Max in Single Turn 1 | . . . 1 Machines Repaired . | . . . . Machines Dismantled . | . . . . Machines Sabotaged . | . . . . Overloaded Fab Kills . | . . . . Hacking | -11 -10 -10 -10 --------- Run | Yrd Mat Min Exi Machines Accessed 11 | . 8 2 1 Terminals 7 | . 6 1 . Fabricators . | . . . . Repair Stations . | . . . . Recycling Units 2 | . 2 . . Scanalyzers . | . . . . Garrison Access . | . . . . Total Hacks 34 | . 30 3 1 Successful 20 | . 17 2 1 Failed 14 | . 13 1 . Catastrophic 2 | . 2 . . Database Lockouts . | . . . . Manual 22 | . 21 . 1 Terminals 24 | . 22 2 . Fabricators . | . . . . Repair Stations . | . . . . Recycling Units 8 | . 8 . . Scanalyzers . | . . . . Garrison Access . | . . . . Terminal Hacks 10 | . 7 2 1 Robot Analysis 2 | . 2 . . Prototype ID Bank 1 | . 1 . . Open Door 1 | . . 1 . Locate Traps 3 | . 3 . . Patrol Status 1 | . . 1 . Recall Investigation 1 | . 1 . . Derelict Proto ID Bank 1 | . . . 1 Fabricator Hacks . | . . . . Repair Station Hacks . | . . . . Recycling Unit Hacks 3 | . 3 . . Report Inventory 2 | . 2 . . Retrieve Components 1 | . 1 . . Scanalyzer . | . . . . Garrison Access Hacks . | . . . . Unauthorized Hacks 7 | . 7 . . Terminals 3 | . 3 . . Botnet 3 | . 3 . . Fabricators . | . . . . Repair Stations . | . . . . Recycling Units 4 | . 4 . . Monitor 1 | . 1 . . Reject 1 | . 1 . . Recyclers 1 | . 1 . . Mask 1 | . 1 . . Scanalyzers . | . . . . Garrison Access . | . . . . Data Cores Recovered . | . . . . Used . | . . . . Hacking Detections 8 | . 7 1 . Full Trace Events . | . . . . Feedback Events . | . . . . Feedback Blocked . | . . . . Robot Schematics Acquired . | . . . . Robots Built . | . . . . Authchips . | . . . . Time . | . . . . Total Robot Build Rating . | . . . . Part Schematics Acquired . | . . . . Parts Built . | . . . . Authchips . | . . . . Time . | . . . . Total Part Build Rating . | . . . . Parts Repaired . | . . . . Time . | . . . . Parts Recycled . | . . . . Recycled Matter . | . . . . Retrieved Matter . | . . . . Retrieved Components 10 | . 10 . . Parts Scanalyzed . | . . . . Part Schematics Acquired . | . . . . Parts Damaged . | . . . . Bothacking | -11 -10 -10 -10 ------------ Run | Yrd Mat Min Exi Used RIF Installer . | . . . . Robots Hacked . | . . . . Non-combat . | . . . . Combat . | . . . . Robot Hacks Applied . | . . . . Relay Couplers Released . | . . . . Fabnet Peak Effective % . | . . . . Robots Rewired . | . . . . Allies Hacked . | . . . . Hacks Repelled . | . . . . Allies | -11 -10 -10 -10 -------- Run | Yrd Mat Min Exi Total Allies 2 | . . 2 . Largest Group 2 | . . 2 . Highest-Rated Group 45 | . . 45 . Highest-Rated Ally 31 | . . 31 . Total Orders . | . . . . Ally Attacks 6 | . . 6 . Total Damage 127 | . . 127 . Kills 3 | . . 3 . Allies Corrupted . | . . . . Allies Melted . | . . . . Intel | -11 -10 -10 -10 ------- Run | Yrd Mat Min Exi Robot Analysis Total 2 | . 2 . . Derelict Logs Recovered 1 | . . 1 . Drone Launches . | . . . . Drone Recoveries . | . . . . Exploration | -11 -10 -10 -10 ------------- Run | Yrd Mat Min Exi Turns Passed 2476 | 88 699 659 1030 Spaces Moved 1819 | 60 479 586 694 Core 5 | 5 . . . Treads 425 | . 4 . 421 Legs . | . . . . Wheels 1389 | 55 475 586 273 Hover . | . . . . Flight . | . . . . Fastest Speed 50 | 50 90 95 95 Average Speed 111 | 85 102 95 134 Slowest Speed 160 | 90 160 95 160 Overloaded Moves . | . . . . Propulsion Burnouts . | . . . . Robots Hopped . | . . . . Cave-ins Triggered . | . . . . Exploration Rate (%) 59 | 4 81 89 62 Regions Visited 3 Branch Regions 2 Pre-discovered Areas . | . . . . Known Exits Taken . | . . . . Unknown Exits Taken 3 | 1 1 1 . Scrap Searched 1 | . . 1 . Spaces Dug 6 | . . 6 . Terrain Destroyed 70 | . . 54 16 Melee . | . . . . Projectile 8 | . . 8 . AOE 62 | . . 46 16 Terrain Rammed . | . . . . Walls Destroyed . | . . . . Machines Disabled . | . . . . Actions | -11 -10 -10 -10 --------- Run | Yrd Mat Min Exi Total 2107 | 80 625 630 772 Wait 82 | . 61 8 13 Move 1816 | 59 478 585 694 Hop . | . . . . Pick Up 44 | 7 23 4 10 Fast Attach 13 | 7 1 1 4 Attach 11 | . 1 . 10 Detach 6 | . 1 . 5 Swap 15 | . 7 4 4 Drop 39 | . 18 5 16 Fire 81 | 7 35 23 16 Melee . | . . . . Ram . | . . . . Kick . | . . . . Crush . | . . . . Escape Stasis . | . . . . Rewire . | . . . . Trap . | . . . . Miscellaneous . | . . . . Route ------- -11/Scrapyard -10/Materials (discovered 4 exits: [*Mat x3] / *Min) -10/Mines (discovered 2 exits: [*Mat] / *Exi) -10/Exiles (discovered 1 exit: [*Min]) History --------- Turn | Location | Event 23 | -11/Scrapyard | Discovered new exit (range 14) 89 | -11/Scrapyard | Entered Materials 134 | -10/Materials | Discovered new exit (range 16) 249 | -10/Materials | Discovered new exit (range 12) 336 | -10/Materials | Build established: Mutant 337 | -10/Materials | Discovered new exit (range 16) 623 | -10/Materials | Discovered new exit (range 8) 788 | -10/Materials | Entered Mines 814 | -10/Mines | Found a damaged Exp. Sensor Array with a note attached 816 | -10/Mines | Found Prototype Device 817 | -10/Mines | Identified Exp. Sensor Array 900 | -10/Mines | Deemed a non-threat by the Exiles lab entrance 901 | -10/Mines | Discovered new exit (range 5) 981 | -10/Mines | Learned Materials emergency access door positions 1054 | -10/Mines | Met a Derelict who couldn't figure out how to use a Trap Extractor 1135 | -10/Mines | Discovered new exit (range 7) 1192 | -10/Mines | Excavation squad dispatched 1192 | -10/Mines | A large section of the Mines collapsed 1447 | -10/Mines | Entered Exiles 1465 | -10/Exiles | Discovered new exit (range 14) 1489 | -10/Exiles | Met 8R-AWN 1505 | -10/Exiles | Met EX-HEX 1555 | -10/Exiles | Met EX-DEC 1582 | -10/Exiles | Met EX-BIN 2185 | -10/Exiles | Aligned with FarCom system 2187 | -10/Exiles | Given EX-Vault access code 2225 | -10/Exiles | Opened EX-Vault 2231 | -10/Exiles | Found AWS/Gauss 2237 | -10/Exiles | Found Lightpack 2.0 2282 | -10/Exiles | Warned to stay clear of 0b10 Research branches 2394 | -10/Exiles | Murdered EX-BIN 2395 | -10/Exiles | Attacked by the Exiles 2442 | -10/Exiles | Core integrity fell below 50% 2449 | -10/Exiles | Core integrity fell below 20% 2477 | -10/Exiles | Destroyed by 8R-AWN with 8R-AWN's Boregun Last Messages --------------- 02466_ Acquired EX Chip 2. 02466_ HV Slug penetrates FarCom Aligner. 02466_ Penetrated by HV Slug. 02466_ HV Slug penetrates FarCom Aligner. 02467_ Discarded EX Chip 2. 02469_ Penetrated by HV Slug. 02469_ HV Slug penetrates FarCom Aligner. 02469_ Penetrated by HV Slug. 02469_ HV Slug penetrates FarCom Aligner. 02471_ Penetrated by HV Slug. 02471_ HV Slug penetrates FarCom Aligner. 02474_ Penetrated by HV Slug. 02474_ HV Slug penetrates FarCom Aligner. 02474_ Penetrated by HV Slug. 02474_ HV Slug penetrates FarCom Aligner. 02475_ FarCom Aligner collapses. 02477_ Penetrated by HV Slug. 02477_ Med. Laser destroyed. 02477_ HV Slug penetrates FarCom Aligner. 02477_ Penetrated by HV Slug. Map ----- +----------------------------------------------------+ | ?????????????# #???????????????????????????? | | ?????????????## ##???????????????????????????? | | ?????????????#X #????????????????????????????? | | ?????????????## #????????????????????????????? | | ??????????????# #????????????????????????????? | | ??????????????# #########????????????????????? | | ??????????????# ##""""""#????????????????????? | | ??????????????# ## """#????????????????????? | | ??????????????# X""#????????????????????? | | ??????????????# ## """#????????????????????? | | ??????######### ##""""""#????????????????????? | | ??????#""""""## #########????????????????????? | | ??????#"""" ## #????????????????????????????? | | ??????#""X" #????????????????????????????? | | ??????#" #????????????????????????????? | | ??????#" ## #????????????????????????????? | | ??????#""""""## #?#########???##?????????????? | | ??????##"###### #?#"""""""#??# #?????????????? | | ?????? "?????# #?#"""""""#?# #??????????????? | | ?????"""??????# #?#"""""""## #???????????????? | | ?????"""?????## ###"" """"# #????????????????? | | ?????????????#" ";#?????????????????? | | ?????????????#" ! " #??????????????????? | | ?????????????#" !! "#??????????????????? | | ?????????????#" !!% ""#??????????????????? | | ##???????????# %@ ""#??????????????????? | | """????????#" "## ????????????????? | | " """????????## """""" ???????????????? | | " ????????# g """####???????????????? | | " ?????????# X" """""?????????????????? | | " "????????## "" # ?????????????????? | | "?????????# """""#??????????????????? | | " "?????????# # ######??????????????????? | | # #????????##" ###???????????????????????? | | # ###?######" ??????????????????????????? | | # #"###""""""" #??????????????????????????? | | """""" " " ##???###########????????????? | | "" """ " #####"""""""""##???????????? | | " " " """ """"##??????????? | | "" " #??????????? | | " """#??????????? | | " "#??????????? | | " "##?????????# | | ""###???????# | | """""" """#??????## | | ######""" "#????### | | ""##????#####""" ##???# | | """##?????????##""" ##?## | | """##???????????#"""" ### | | ""#???????????##"" | +----------------------------------------------------+ Best States ------------- Heat Dissipation 39 Energy Generation 10 Energy Capacity 250 Matter Stores 300 Matter Capacity 300 Sight Range 16 Robot Scan Range 20 Terrain Scan Density 10 Armor Coverage 150 Resistance: KI 20 Resistance: TH 10 Evasion (%) 44 Recoil Reduction 2 Item Schematics ----------------- None Robot Schematics ------------------ None Fabricated ------------ Nothing Alien Tech Used ----------------- None Achievements -------------- None Challenges ------------ None Game ------ Seed MicrowarpChargeBoregun Manual? 0 Play Time 00:34:19 Cumulative 309.7 hours Start 2024.09.23 @ 17:09:33 End 2024.09.23 @ 17:45:30 Sessions 1 Manual Loads 0 Difficulty Rogue Special Mode None Game No. 115 Rogue 113 Adventurer 0 Explorer 2 Win Type - Total 8 Types 6/0/1/1/0/0/0/0/0 Lore% 67 Gallery% 80 Achievement% 73 Wizard Run 0 Options --------- Layout 2 ASCII 0 Keyboard 0 Movement Numpad Keybinds 0 Fullscreen 1 Font 24/Smallcaps Map View 50x44 Zoom Use 0% Tactical HUD 1 Map Filters NONE Filters NONE Steam 0 RUN: 57fc8b10-16d7-4763-958f-d83dcad9fc2c